bitfinex/quotes_SOLUSD_20251013
["timestamp","ask_amount","ask_price","bid_price","bid_amount"]
[1760341729625,0.50686806,196.7,196.58,5.08698748]
[1760341729826,32.66282482,196.65,196.58,5.08698748]
[1760341730020,20.8,196.65,196.58,29.66728101]
[1760341730246,32.66282482,196.65,196.58,17.80445619]
[1760341730440,11.86282482,196.64,196.58,17.80445619]
[1760341730651,11.86282482,196.62,196.58,17.80445619]
[1760341731236,11.86282482,196.6,196.58,5.08698748]
[1760341731452,20.8,196.57,196.46,0.7]
[1760341731619,11.86282482,196.52,196.47,12.72422054]
[1760341731816,11.86282482,196.54,196.48,0.7]
[1760341732025,0.66,196.59,196.48,0.7]
[1760341732326,11.86282482,196.51,196.48,0.7]
[1760341732544,0.09784661,196.5,196.47,12.72422054]
[1760341732748,0.11080386,196.52,196.49,12.56282482]
[1760341732921,0.11080386,196.52,196.51,11.86282482]
[1760341733120,0.10489595,196.53,196.52,5.0885406]
[1760341733318,1e-08,196.53,196.52,17.65136542]
[1760341733525,0.09744197,196.56,196.52,18.50989211]
[1760341733721,0.09744197,196.56,196.53,12.56282482]
[1760341734033,0.09744197,196.56,196.53,0.7]
[1760341734228,0.09744197,196.56,196.52,17.80989211]
[1760341734553,0.10421079,196.58,196.55,11.86282482]
[1760341734554,1e-08,196.58,196.55,11.86282482]
[1760341734839,11.86282482,196.68,196.57,11.86282482]
[1760341735020,11.86282482,196.66,196.59,11.86282482]
[1760341735229,11.86282482,196.65,196.59,17.80355053]
[1760341735431,11.86282482,196.64,196.59,17.80355053]
[1760341735617,11.86282482,196.63,196.59,17.80355053]
[1760341735817,20.8,196.67,196.59,18.50355053]
[1760341736017,0.66,196.69,196.59,30.36637535]
[1760341736241,0.50686806,196.73,196.44,19.99999999]
[1760341736242,11.86282482,196.6,196.44,19.99999999]
[1760341736428,19.99999999,196.56,196.35,0.7]
[1760341736634,20.8,196.53,196.35,0.7]
[1760341736932,0.50686806,196.52,196.38,11.86282482]
[1760341737113,11.86282482,196.48,196.4,17.82077392]
[1760341737518,11.86282482,196.46,196.4,17.82077392]
[1760341738039,11.86282482,196.48,196.41,0.7]
[1760341738822,11.86282482,196.5,196.41,12.56282482]
[1760341739216,11.86282482,196.5,196.42,17.81895936]
[1760341740149,1.16686806,196.62,196.43,11.57647521]
[1760341740437,11.86282482,196.55,196.46,11.86282482]
[1760341740643,20.8,196.54,196.46,11.86282482]
[1760341740832,20.8,196.54,196.47,11.86282482]
[1760341741230,20.8,196.54,196.48,17.8135179]
[1760341741733,20.8,196.56,196.48,17.8135179]
[1760341741934,11.86282482,196.55,196.48,17.8135179]
[1760341742641,11.86282482,196.52,196.48,17.8135179]
[1760341743149,32.66282482,196.53,196.48,17.8135179]
[1760341743330,0.50686806,196.56,196.48,17.8135179]
[1760341743331,11.86282482,196.56,196.49,11.86282482]
[1760341743532,0.66,196.61,196.53,11.86282482]
[1760341743732,11.86282482,196.57,196.48,12.72394136]
[1760341743931,11.86282482,196.59,196.52,11.86282482]
[1760341744148,0.66,196.61,196.54,11.86282482]
[1760341744149,12.52282482,196.61,196.54,11.86282482]
[1760341744348,20.8,196.59,196.49,0.7]
[1760341744646,11.86282482,196.57,196.5,11.86282482]
[1760341744830,11.86282482,196.58,196.51,5.5]
[1760341745151,11.86282482,196.58,196.51,17.36282482]
[1760341745537,12.52282482,196.59,196.52,17.80989211]
[1760341745842,0.66,196.64,196.53,11.86282482]
[1760341746057,11.86282482,196.61,196.54,11.86282482]
[1760341746250,11.86282482,196.62,196.55,11.86282482]
[1760341746451,11.86282482,196.56,196.51,5.5]
[1760341746623,12.52282482,196.56,196.51,10.58860726]
[1760341746828,11.86282482,196.56,196.51,10.58860726]
[1760341747347,20.8,196.58,196.52,0.7]
[1760341747348,11.86282482,196.58,196.52,0.7]
[1760341747534,0.50686806,196.68,196.57,11.86282482]
[1760341747737,11.86282482,196.67,196.59,11.86282482]
[1760341747937,32.66282482,196.65,196.58,11.86282482]
[1760341748247,0.66,196.69,196.59,11.86282482]
[1760341748436,11.86282482,196.66,196.59,11.86282482]
[1760341748847,11.86282482,196.67,196.59,11.86282482]
[1760341749055,11.86282482,196.66,196.59,11.86282482]
[1760341749559,11.86282482,196.66,196.53,43.25039432]
[1760341749560,1.16686806,196.65,196.54,0.7]
[1760341749731,11.86282482,196.65,196.59,0.7]
[1760341749933,21.30686806,196.69,196.59,0.7]
[1760341750159,11.86282482,196.66,196.59,0.7]
[1760341750337,11.86282482,196.66,196.59,12.56282482]
[1760341750540,20.8,196.57,196.51,5.5]
[1760341750743,11.86282482,196.53,196.51,5.5]
[1760341750941,12.36969288,196.53,196.51,5.5]
[1760341751139,1.16686806,196.61,196.51,10.58875801]
[1760341751429,11.86282482,196.55,196.51,23.31075689]
[1760341751736,1.16686806,196.61,196.51,23.31075689]
[1760341751937,11.86282482,196.55,196.51,23.31075689]
[1760341752144,12.36969288,196.57,196.52,0.7]
[1760341752356,11.86282482,196.57,196.52,0.7]
[1760341752559,0.0931387,196.53,196.51,23.31075689]
[1760341753161,0.0931387,196.53,196.52,0.7]
[1760341753536,0.0931387,196.53,196.52,5.7885406]
[1760341754857,0.09903232,196.54,196.52,5.7885406]
[1760341755045,0.09903232,196.54,196.53,0.7]
[1760341755743,0.09903232,196.54,196.53,5.78828168]
[1760341755943,0.09903232,196.54,196.53,5.08828168]
[1760341756349,0.09903232,196.54,196.51,10.58871363]
[1760341756551,1.16686806,196.53,196.51,5.4]
[1760341756867,32.66282482,196.52,196.51,5.4]
[1760341757244,32.66282482,196.52,196.51,5.3]
[1760341757245,12.42282482,196.52,196.51,5.3]
[1760341757548,10.21078076,196.52,196.51,5.3]
[1760341757756,9.65078076,196.52,196.51,5.3]
[1760341758059,30.91078076,196.52,196.51,5.3]
[1760341759148,10.11078076,196.52,196.51,5.3]
[1760341759548,10.61764882,196.52,196.51,5.3]
[1760341761050,0.1568466,196.43,196.37,12.73104821]
[1760341761359,9.65078076,196.4,196.37,12.73104821]
[1760341761668,9.65078076,196.41,196.38,18.48258885]
[1760341762644,9.65078076,196.42,196.38,18.48258885]
[1760341763468,9.65078076,196.41,196.38,18.48258885]
[1760341763664,9.65078076,196.41,196.38,17.82258885]
[1760341763847,9.65078076,196.4,196.38,5.09216824]
[1760341764545,0.66371466,196.43,196.38,5.09216824]
[1760341764859,9.65078076,196.4,196.38,5.75216824]
[1760341765243,9.65078076,196.41,196.38,17.82258885]
[1760341766260,9.65078076,196.41,196.38,12.73042061]
[1760341766444,0.66371466,196.43,196.39,0.66]
[1760341766445,0.1568466,196.43,196.39,0.66]
[1760341766638,0.1568466,196.43,196.4,0.66]
[1760341766838,20.8,196.45,196.4,0.66]
[1760341767040,20.8,196.45,196.41,0.66]
[1760341767241,30.45078076,196.45,196.41,0.66]
[1760341767471,9.65078076,196.44,196.38,13.39042061]
[1760341767947,9.65078076,196.44,196.38,18.48258885]
[1760341768475,30.45078076,196.45,196.39,0.66]
[1760341768765,9.65078076,196.49,196.41,9.65078076]
[1760341768969,9.65078076,196.48,196.42,0.66]
[1760341769369,9.65078076,196.45,196.39,0.66]
[1760341769862,9.65078076,196.45,196.4,17.82077392]
[1760341770066,9.65078076,196.44,196.4,17.82077392]
[1760341770253,9.65078076,196.42,196.4,17.82077392]
[1760341770660,9.65078076,196.43,196.4,17.82077392]
[1760341771354,9.65078076,196.43,196.4,12.72912423]
[1760341771964,9.65078076,196.45,196.41,0.66]
[1760341772160,9.65078076,196.44,196.41,0.66]
[1760341772360,9.65078076,196.44,196.4,12.72912423]
[1760341772561,0.09730978,196.42,196.4,13.38912423]
[1760341772954,0.09730978,196.42,196.41,0.66]
[1760341773270,0.09946452,196.44,196.41,0.66]
[1760341773471,0.09946452,196.44,196.41,10.31078076]
[1760341773768,0.09946452,196.44,196.42,10.31078076]
[1760341774166,0.09946452,196.44,196.43,0.66]
[1760341774765,1e-08,196.44,196.43,0.66]
[1760341774959,1e-08,196.45,196.44,5.0906129]
[1760341775161,1e-08,196.48,196.44,5.7506129]
[1760341775348,1e-08,196.48,196.45,10.31078076]
[1760341775552,1e-08,196.49,196.47,9.65078076]
[1760341775955,1e-08,196.49,196.48,0.66]
[1760341777060,1e-08,196.49,196.48,5.74957654]
[1760341777565,9.65078076,196.55,196.48,53.57218139]
[1760341777761,0.50686806,196.57,196.5,9.65078076]
[1760341777973,9.65078076,196.58,196.51,0.66]
[1760341778682,0.50686806,196.61,196.52,9.65078076]
[1760341778851,9.65078076,196.6,196.53,0.66]
[1760341779159,0.50686806,196.64,196.54,17.80807977]
[1760341779350,0.50686806,196.64,196.55,0.66]
[1760341779544,9.65078076,196.61,196.55,0.66]
[1760341781174,0.50686806,196.63,196.56,17.80626779]
[1760341781373,9.65078076,196.62,196.56,5.08750508]
[1760341781856,9.65078076,196.62,196.57,0.66]
[1760341782056,9.65078076,196.62,196.58,0.66]
[1760341782256,9.65078076,196.62,196.59,0.66]
[1760341782855,0.50686806,196.63,196.57,0.66]
[1760341783052,0.50686806,196.63,196.59,17.80355053]
[1760341783259,20.8,196.66,196.59,18.46355053]
[1760341783260,9.65078076,196.62,196.59,18.46355053]
[1760341783554,9.65078076,196.63,196.59,17.80355053]
[1760341784166,0.50686806,196.65,196.6,0.66]
[1760341784476,9.65078076,196.61,196.59,17.80355053]
[1760341784773,9.65078076,196.62,196.59,5.08672872]
[1760341785159,9.65078076,196.62,196.58,12.71726778]
[1760341785160,9.65078076,196.62,196.58,17.80425526]
[1760341785359,6.46800452,196.62,196.58,17.80425526]
[1760341785864,6.46800452,196.62,196.58,18.46425526]
[1760341786080,19.99999999,196.88,196.59,0.66]
[1760341786255,6.46800452,196.77,196.69,6.46800452]
[1760341786571,19.99999999,196.88,196.65,0.66]
[1760341786761,39.18990622,196.86,196.7,6.46800452]
[1760341786953,39.18990622,196.86,196.72,6.46800452]
[1760341786954,6.46800452,196.8,196.72,6.46800452]
[1760341787353,39.18990622,196.86,196.73,6.46800452]
[1760341787548,6.46800452,196.82,196.75,6.46800452]
[1760341787768,38.72990622,196.86,196.76,6.46800452]
[1760341787971,6.66800452,196.84,196.76,7.12800452]
[1760341788472,0.2,196.84,196.77,6.46800452]
[1760341788774,1e-08,196.78,196.77,6.46800452]
[1760341789072,1e-08,196.78,196.77,7.12800452]
[1760341789268,1e-08,196.78,196.77,12.21008003]
[1760341790156,1e-08,196.78,196.77,5.08207551]
[1760341790971,1e-08,196.78,196.77,12.21008003]
[1760341791672,1e-08,196.78,196.77,5.74207551]
[1760341791871,1e-08,196.78,196.77,5.08207551]
[1760341792553,0.09339719,196.78,196.77,5.08207551]
[1760341793267,0.09339719,196.78,196.75,12.70628063]
[1760341794068,6.46800452,196.8,196.75,12.70628063]
[1760341794272,10.87647521,196.88,196.75,12.70628063]
[1760341794460,6.46800452,196.79,196.73,5.08310882]
[1760341794874,10.87647521,196.89,196.73,17.79088089]
[1760341795062,6.46800452,196.8,196.73,17.79088089]
[1760341795248,10.87647521,196.89,196.74,6.46800452]
[1760341795453,6.46800452,196.85,196.77,6.46800452]
[1760341795862,10.87647521,196.91,196.77,6.46800452]
[1760341796155,6.56124094,196.86,196.77,6.46800452]
[1760341796370,6.46800452,196.84,196.77,6.46800452]
[1760341797273,6.46800452,196.84,196.75,49.67003754]
[1760341797481,6.46800452,196.8,196.75,17.78907242]
[1760341797856,20.8,196.84,196.75,17.78907242]
[1760341798053,0.46,197.02,196.82,6.46800452]
[1760341798278,6.46800452,196.88,196.8,6.46800452]
[1760341798457,6.46800452,196.86,196.76,7.12800452]
[1760341798862,6.46800452,196.82,196.76,0.66]
[1760341799580,6.46800452,196.82,196.77,17.7872643]
[1760341799782,20.8,196.84,196.77,17.7872643]
[1760341799986,6.46800452,196.81,196.77,17.7872643]
[1760341800363,6.46800452,196.78,196.71,17.79268974]
[1760341800568,20.8,196.8,196.71,17.79268974]
[1760341800769,6.46800452,196.76,196.71,17.79268974]
[1760341800977,6.46800452,196.79,196.73,6.46800452]
[1760341801275,20.8,196.8,196.74,6.46800452]
[1760341801485,27.26800452,196.82,196.75,24.25707694]
[1760341801980,6.46800452,196.8,196.75,17.78907242]
[1760341802981,6.46800452,196.78,196.75,17.78907242]
[1760341803184,6.46800452,196.76,196.75,5.08259212]
[1760341803484,6.46800452,196.77,196.72,12.70809225]
[1760341803679,6.46800452,196.78,196.72,12.70809225]
[1760341803985,6.46800452,196.76,196.72,12.70809225]
[1760341804277,0.46,196.85,196.64,5.08543531]
[1760341804278,20.8,196.74,196.64,5.08543531]
[1760341804484,6.46800452,196.71,196.64,24.26702811]
[1760341804682,20.8,196.74,196.64,24.26702811]
[1760341804683,6.46800452,196.69,196.64,17.79902359]
[1760341804976,6.46800452,196.65,196.64,5.08543531]
[1760341805185,20.8,196.71,196.64,5.08543531]
[1760341805372,6.46800452,196.67,196.64,5.08543531]
[1760341805572,6.46800452,196.66,196.64,5.08543531]
[1760341805760,6.46800452,196.65,196.63,5.48]
[1760341805961,6.46800452,196.64,196.63,5.48]
[1760341806266,20.8,196.65,196.63,5.48]
[1760341806459,27.26800452,196.64,196.63,5.48]
[1760341806873,20.8,196.64,196.63,5.48]
[1760341807078,27.26800452,196.64,196.63,5.48]
[1760341807888,27.26800452,196.64,196.63,10.56569394]
[1760341808283,10.87647521,196.76,196.63,17.69369846]
[1760341808487,6.46800452,196.8,196.66,6.46800452]
[1760341808783,6.46800452,196.74,196.67,6.46800452]
[1760341808986,6.46800452,196.7,196.64,0.66]
[1760341809184,6.46800452,196.7,196.63,23.27992879]
[1760341809185,6.46800452,196.68,196.63,23.27992879]
[1760341809485,6.46800452,196.64,196.63,10.56569394]
[1760341809689,6.46800452,196.64,196.63,5.48]
[1760341811183,10.87647521,196.78,196.63,12.60800452]
[1760341811382,10.87647521,196.76,196.66,6.46800452]
[1760341811600,10.87647521,196.76,196.63,23.27992879]
[1760341811601,6.46800452,196.76,196.7,6.46800452]
[1760341811888,0.46,196.82,196.73,6.46800452]
[1760341812076,6.46800452,196.81,196.74,6.46800452]
[1760341812277,6.46800452,196.83,196.76,6.46800452]
[1760341812484,6.46800452,196.85,196.78,6.46800452]
[1760341812664,0.10652779,196.79,196.77,7.12800452]
[1760341812986,0.10652779,196.79,196.78,0.66]
[1760341813291,6.57453231,196.79,196.73,0.66]
[1760341813465,6.46800452,196.78,196.73,0.66]
[1760341813665,6.57453231,196.79,196.73,0.66]
[1760341813877,0.10652779,196.79,196.74,17.78997661]
[1760341814081,0.10652779,196.79,196.75,0.66]
[1760341814400,0.10652779,196.79,196.74,17.78997661]
[1760341814401,0.10652779,196.79,196.78,6.46800452]
[1760341814865,0.10652779,196.79,196.78,0.66]
[1760341815065,0.10652779,196.79,196.74,17.78997661]
[1760341815276,6.57453231,196.79,196.76,0.66]
[1760341815480,0.10652779,196.79,196.76,0.66]
[1760341815891,0.10652779,196.79,196.77,5.08207551]
[1760341816273,0.10652779,196.79,196.77,5.74207551]
[1760341816467,0.10652779,196.79,196.78,7.12800452]
[1760341816667,0.10061761,196.8,196.78,7.12800452]
[1760341816868,0.10750398,196.82,196.79,7.16800452]
[1760341817084,0.10750398,196.82,196.81,6.46800452]
[1760341817288,1e-08,196.82,196.81,6.46800452]
[1760341817476,1e-08,196.82,196.81,7.16800452]
[1760341817990,1e-08,196.82,196.81,12.24904714]
[1760341818181,0.10965841,196.83,196.81,12.24904714]
[1760341818182,1e-08,196.83,196.81,12.24904714]
[1760341818381,1e-08,196.84,196.82,7.16800452]
[1760341818695,1e-08,196.84,196.83,6.46800452]
[1760341819006,1e-08,196.84,196.83,7.16800452]
[1760341819571,1e-08,196.84,196.83,0.7]
[1760341819794,1e-08,196.84,196.83,7.16800452]
[1760341819968,1e-08,196.84,196.83,12.24853086]
[1760341821595,0.2,197.01,196.84,10.87647521]
[1760341821900,0.2,197.01,196.97,17.76920342]
[1760341822070,0.2,197.01,196.97,24.93720794]
[1760341822274,100.0,197.0,196.98,7.16800452]
[1760341822688,100.0,197.0,196.98,0.7]
[1760341823269,100.0,197.0,196.89,0.7]
[1760341823497,6.46800452,196.99,196.92,6.46800452]
[1760341823982,100.0,197.0,196.94,6.46800452]
[1760341824190,100.0,197.0,196.93,17.77281266]
[1760341824191,6.46800452,196.99,196.93,17.77281266]
[1760341824694,6.46800452,196.98,196.93,17.77281266]
[1760341824998,6.46800452,196.98,196.93,18.47281266]
[1760341825179,6.46800452,196.98,196.93,43.86254505]
[1760341825374,6.46800452,196.97,196.93,17.77281266]
[1760341825693,6.46800452,196.94,196.91,5.07821814]
[1760341826183,20.8,196.97,196.89,12.69703179]
[1760341826184,6.46800452,196.92,196.89,12.69703179]
[1760341826494,6.46800452,196.91,196.89,12.69703179]
[1760341826697,6.46800452,196.92,196.89,12.69703179]
[1760341827002,6.46800452,196.93,196.89,12.69703179]
[1760341828073,20.8,196.97,196.91,17.77461784]
[1760341828274,6.46800452,196.95,196.91,17.77461784]
[1760341828494,6.46800452,196.96,196.91,17.77461784]
[1760341829100,100.0,197.0,196.92,0.7]
[1760341829306,6.46800452,196.98,196.92,7.16800452]
[1760341829677,6.46800452,196.97,196.91,17.77461784]
[1760341829999,100.56,197.0,196.91,17.77461784]
[1760341830297,6.46800452,196.95,196.91,12.6961556]
[1760341830671,6.46800452,196.95,196.91,13.3961556]
[1760341830994,6.46800452,196.96,196.91,13.3961556]
[1760341831295,106.46800452,197.0,196.94,6.46800452]
[1760341831796,106.46800452,197.0,196.91,12.6961556]
[1760341831797,100.0,197.0,196.96,6.46800452]
[1760341831993,100.0,197.0,196.97,0.7]
[1760341832295,100.0,197.0,196.99,5.07639981]
[1760341832600,100.09651865,197.0,196.99,5.07639981]
[1760341835098,100.09651865,197.0,196.99,5.77639981]
[1760341835299,68.05462751,197.0,196.99,5.77639981]
[1760341835483,0.09402276,197.03,196.99,24.93540387]
[1760341835687,0.09402276,197.03,197.01,6.46800452]
[1760341835887,1e-08,197.03,197.01,6.46800452]
[1760341836087,1e-08,197.03,197.01,7.16800452]
[1760341836284,1e-08,197.03,196.99,17.76739935]
[1760341836690,1e-08,197.03,197.0,0.7]
[1760341837094,1e-08,197.03,197.01,0.7]
[1760341837593,1e-08,197.03,197.02,5.07562683]
[1760341837996,1e-08,197.03,197.02,5.77562683]
[1760341838305,1e-08,197.03,197.02,5.07562683]
[1760341839388,6.46800453,197.03,197.01,5.07588447]
[1760341839589,6.46800452,197.02,197.01,5.07588447]
[1760341840084,7.02800452,197.02,196.96,17.76969878]
[1760341840291,6.46800452,196.98,196.96,17.76969878]
[1760341840595,6.46800452,196.99,196.96,17.76969878]
[1760341841609,6.46800452,196.99,196.96,12.69252575]
[1760341842006,6.46800452,196.97,196.96,12.69252575]
[1760341842195,6.46800452,196.98,196.96,12.69252575]
[1760341842593,6.46800452,196.97,196.94,5.07768863]
[1760341842906,6.46800452,196.95,196.94,5.07768863]
[1760341843608,6.46800452,196.96,196.91,17.77434107]
[1760341843907,1e-08,197.03,196.95,6.46800452]
[1760341844115,1e-08,197.03,196.99,6.46800452]
[1760341844615,1e-08,197.03,197.0,0.7]
[1760341845318,6.46800453,197.03,196.97,0.7]
[1760341845502,9.59473097,197.03,196.98,17.76830134]
[1760341845900,1e-08,197.03,196.99,0.7]
[1760341846096,1e-08,197.03,196.98,52.74631994]
[1760341846401,1e-08,197.03,197.0,0.7]
[1760341846913,0.10733518,197.05,197.02,9.59473096]
[1760341847114,0.10733518,197.05,197.03,0.71]
[1760341847503,0.10733518,197.05,197.04,0.71]
[1760341847700,1e-08,197.05,197.04,5.78511165]
[1760341848713,9.59473096,197.1,197.04,53.44318]
[1760341848918,0.56,197.15,197.05,9.59473096]
[1760341849409,9.59473096,197.11,197.05,9.59473096]
[1760341849918,10.87647521,197.19,196.98,34.9780186]
[1760341849919,9.59473096,197.14,197.06,43.85407082]
[1760341850111,9.59473096,197.14,197.08,9.59473096]
[1760341850511,9.59473096,197.14,197.07,0.72]
[1760341850711,9.59473096,197.14,197.07,10.31473096]
[1760341850912,0.56,197.17,197.07,10.31473096]
[1760341851127,9.59473096,197.26,197.09,9.59473096]
[1760341851128,0.76,197.2,197.09,9.59473096]
[1760341851323,9.59473096,197.16,197.08,43.12969351]
[1760341851622,9.59473096,197.09,197.08,17.75928556]
[1760341852004,9.59473096,197.11,197.08,17.75928556]
[1760341852306,9.59473096,197.09,197.08,17.75928556]
[1760341852812,0.10809894,197.09,197.08,17.75928556]
[1760341853018,0.10809894,197.09,197.08,12.68520397]
[1760341853411,0.10364174,197.11,197.08,22.99993493]
[1760341853718,0.10364174,197.11,197.09,0.72]
[1760341854198,0.10577883,197.13,197.1,10.31473096]
[1760341854402,0.10491726,197.14,197.1,0.72]
[1760341854725,0.10491726,197.14,197.11,0.72]
[1760341854893,0.10491726,197.14,197.11,10.31473096]
[1760341855223,0.10491726,197.14,197.13,5.0727946]
[1760341855721,9.70080776,197.15,197.13,5.0727946]
[1760341855925,9.59473096,197.14,197.13,5.0727946]
[1760341856102,0.6660768,197.15,197.13,5.0727946]
[1760341856305,9.59473096,197.14,197.13,5.0727946]
[1760341856918,10.15473096,197.14,197.08,12.68491685]
[1760341857100,9.59473096,197.1,197.08,12.68491685]
[1760341857522,9.59473096,197.11,197.08,13.40491685]
[1760341857824,0.1060768,197.15,197.1,9.59473096]
[1760341858021,0.1060768,197.15,197.09,0.72]
[1760341858238,9.59473096,197.14,197.09,0.72]
[1760341858426,9.59473096,197.12,197.08,12.68491685]
[1760341858727,9.59473096,197.12,197.08,13.40491685]
[1760341859020,0.6660768,197.15,197.08,12.68491685]
[1760341859227,0.09740804,197.16,197.1,9.59473096]
[1760341859428,0.10976505,197.17,197.09,0.72]
[1760341859612,0.10976505,197.17,197.11,20.8]
[1760341859927,0.10976505,197.17,197.12,0.72]
[1760341860115,9.70449601,197.17,197.13,0.72]
[1760341860427,9.59473096,197.16,197.11,0.72]
[1760341860807,9.59473096,197.16,197.12,0.72]
[1760341861011,0.10976505,197.17,197.13,0.72]
[1760341861220,9.70449601,197.17,197.14,17.75388048]
[1760341861531,0.10976505,197.17,197.14,18.47388048]
[1760341861724,9.70449601,197.17,197.14,17.75388048]
[1760341861926,9.59473096,197.16,197.14,17.75388048]
[1760341862512,0.10976505,197.17,197.14,17.75388048]
[1760341862713,9.70449601,197.17,197.14,17.75388048]
[1760341862926,9.59473096,197.16,197.14,17.75388048]
[1760341863320,9.59473096,197.15,197.14,17.75388048]
[1760341863831,0.10976505,197.17,197.14,18.47388048]
[1760341864233,9.70449601,197.17,197.14,18.47388048]
[1760341864739,9.70449601,197.17,197.14,17.75388048]
[1760341864917,9.59473096,197.15,197.14,5.07253728]
[1760341866316,9.59473096,197.15,197.11,0.72]
[1760341866636,9.59473096,197.15,197.12,0.72]
[1760341866931,9.70449601,197.17,197.13,0.72]
[1760341867231,0.10976505,197.17,197.14,0.72]
[1760341867429,0.10976505,197.17,197.15,0.72]
[1760341867643,0.10976505,197.17,197.16,0.72]
[1760341868020,0.2,197.2,197.16,0.72]
[1760341868324,1e-08,197.2,197.18,5.07150826]
[1760341868524,0.2,197.24,197.19,9.59473096]
[1760341868738,0.2,197.24,197.2,9.59473096]
[1760341868919,9.59473096,197.23,197.18,17.75027892]
[1760341869234,0.2,197.24,197.19,0.72]
[1760341869440,0.2,197.24,197.2,0.72]
[1760341869628,0.2,197.24,197.21,0.72]
[1760341870021,9.59473096,197.22,197.18,43.10782025]
[1760341870340,9.59473096,197.23,197.2,17.74847869]
[1760341871037,0.2,197.24,197.2,17.74847869]
[1760341871239,9.59473096,197.23,197.2,17.74847869]
[1760341871436,9.59473096,197.21,197.2,17.74847869]
[1760341872240,9.59473096,197.22,197.2,12.67748478]
[1760341872642,0.10394959,197.21,197.2,12.67748478]
[1760341872946,9.69868055,197.21,197.2,12.67748478]
[1760341873657,0.10394959,197.21,197.2,12.67748478]
[1760341873835,9.69868055,197.21,197.2,12.67748478]
[1760341874746,9.69868055,197.21,197.16,5.07202272]
[1760341874747,10.34868055,197.21,197.16,5.07202272]
[1760341874947,9.59473096,197.17,197.16,5.07202272]
[1760341875153,21.45,197.2,197.16,5.07202272]
[1760341875339,9.59473096,197.17,197.16,5.07202272]
[1760341876729,9.59473096,197.17,197.11,17.7565826]
[1760341876930,9.59473096,197.15,197.11,17.7565826]
[1760341877130,9.59473096,197.15,197.12,0.69]
[1760341878031,9.59473096,197.13,197.08,0.69]
[1760341878241,9.59473096,197.13,197.09,0.69]
[1760341878440,9.59473096,197.12,197.1,0.69]
[1760341878637,9.59473096,197.11,197.07,0.69]
[1760341879044,9.59473096,197.11,197.04,27.35762174]
[1760341879247,9.59473096,197.11,197.05,0.69]
[1760341879837,9.59473096,197.11,197.06,43.13407082]
[1760341880138,9.59473096,197.11,197.07,0.69]
[1760341881255,9.59473096,197.11,197.06,38.05947426]
[1760341881436,9.59473096,197.11,197.07,0.69]
[1760341882356,9.59473096,197.11,197.06,38.05947426]
[1760341882558,9.59473096,197.12,197.08,0.69]
[1760341883638,9.59473096,197.12,197.09,17.75838449]
[1760341884448,9.59473096,197.1,197.09,17.75838449]
[1760341885454,9.59473096,197.1,197.06,43.13407082]
[1760341885760,0.66,197.15,197.07,0.69]
[1760341885761,9.59473096,197.12,197.07,0.69]
[1760341885938,9.59473096,197.11,197.07,0.69]
[1760341886342,9.59473096,197.1,197.07,0.69]
[1760341886643,12.78581733,197.23,197.08,0.69]
[1760341886644,9.59473096,197.12,197.08,0.69]
[1760341887360,9.59473096,197.11,197.06,43.13407082]
[1760341887661,9.59473096,197.1,197.06,38.05947426]
[1760341888163,9.59473096,197.1,197.06,38.74947426]
[1760341888679,9.59473096,197.07,197.06,17.76108798]
[1760341890763,9.59473096,197.07,197.06,12.68649142]
[1760341892673,9.6955778,197.07,197.06,12.68649142]
[1760341893539,0.10084684,197.07,197.06,12.68649142]
[1760341894272,0.10084684,197.07,197.06,13.33649142]
[1760341894659,0.10084684,197.07,197.06,12.68649142]
[1760341897366,0.10084684,197.07,197.03,17.76379231]
[1760341897550,0.10084684,197.07,197.03,18.41379231]
[1760341897747,0.10084684,197.07,197.04,0.65]
[1760341898070,0.10084684,197.07,197.05,0.65]
[1760341898265,0.10084684,197.07,197.03,17.76379231]
[1760341898446,0.10084684,197.07,197.04,0.65]
[1760341898645,9.59473096,197.06,197.03,17.76379231]
[1760341898861,9.59473096,197.05,197.03,17.76379231]
[1760341899455,9.59473096,197.04,197.03,12.68842308]
[1760341899663,10.25473096,197.04,196.95,0.1]
[1760341899858,9.59473096,196.99,196.95,0.1]
[1760341900474,9.59473096,196.99,196.98,12.69164382]
[1760341900776,0.66,197.05,196.98,12.69164382]
[1760341900955,9.59473096,197.02,196.98,13.34164382]
[1760341901266,9.59473096,197.01,196.98,12.69164382]
[1760341901972,9.59473096,197.0,196.98,12.69164382]
[1760341902470,9.59473096,197.02,196.98,13.34164382]
[1760341902666,9.59473096,197.03,196.98,13.34164382]
[1760341903168,9.59473096,197.02,196.98,13.34164382]